Cogmind - Beta 11 X5 @@@ ROGUE MODE // 2021.07.13 @ 20:08:02 Player: AlmondRoll Result: Destroyed by G-34 Mercenary with Small Laser Performance ------------- Evolutions (0) 0 Regions Visited (4) 800 Robots Destroyed (41) 205 Value Destroyed (792) 792 Prototype IDs (23) 460 Alien Tech Used (0) 0 Bonus (300) 300 TOTAL SCORE: 2557 Bonus ------- Aligned with FarCom 300 Cogmind --------- Core Integrity 0/250 Matter 271/300 Energy 250/250 System Corruption 0% Temperature Cool (6) Movement Rolling (230) Ox10 Location -9/Mines Parts ------- > --- POWER (1) -------- Ion Engine > --- PROPULSION (2) --- Wheel Wheel > --- UTILITY (2) ------ Humpback > --- WEAPON (2) ------- Assault Rifle Assault Rifle > --- INVENTORY (35) --- Light Treads Light Treads Wheel Compact Wheel Large Storage Unit Humpback Transport Network Coupler Light Armor Plating Hacking Suite Small Laser Particle Gun AWS/Thermal Latent Energy Streamer Assault Rifle Assault Rifle Assault Rifle Assault Rifle Assault Rifle Light Assault Rifle Light Assault Rifle AWS/Autocannon Rocket Launcher Peak State ------------ > --- POWER ------------ Ion Engine > --- PROPULSION ------- Wheel Wheel > --- UTILITY ---------- Humpback > --- WEAPON ----------- Assault Rifle Assault Rifle > --- INVENTORY -------- Light Treads Light Treads Wheel Compact Wheel Large Storage Unit Humpback Transport Network Coupler Light Armor Plating Hacking Suite Small Laser Particle Gun AWS/Thermal Latent Energy Streamer Assault Rifle Assault Rifle Assault Rifle Assault Rifle Assault Rifle Light Assault Rifle Light Assault Rifle AWS/Autocannon Rocket Launcher [Rating: 15] Favorites ----------- Power Ion Engine Engine Ion Engine Propulsion Wheel Leg Aluminum Leg Wheel Wheel Utility Large Storage Unit Device Heat Sink Storage Large Storage Unit Protection Light Armor Plating Weapon Assault Rifle Energy Gun Medium Laser Ballistic Gun Assault Rifle Launcher Grenade Launcher Build | -11 -10 -10 -10 -9 ------- Run | Scr Mat Min Exi Min Slots Evolved . | . . . . . Power . | . . . . . Propulsion . | . . . . . Utility . | . . . . . Weapon . | . . . . . Parts Attached 25 | 2 17 1 2 3 Power 3 | . 2 . . 1 Engine 3 | . 2 . . 1 Core . | . . . . . Reactor . | . . . . . Propulsion 9 | 2 4 1 . 2 Treads . | . . . . . Leg . | . . . . . Wheel 9 | 2 4 1 . 2 Hover . | . . . . . Flight . | . . . . . Utility 5 | . 4 . 1 . Device 1 | . 1 . . . Storage 3 | . 2 . 1 . Processor . | . . . . . Hackware . | . . . . . Protection 1 | . 1 . . . Artifact . | . . . . . Weapon 8 | . 7 . 1 . Energy Gun . | . . . . . Energy Cannon . | . . . . . Ballistic Gun 6 | . 5 . 1 . Ballistic Cannon . | . . . . . Launcher 2 | . 2 . . . Special Weapon . | . . . . . Impact Weapon . | . . . . . Slashing Weapon . | . . . . . Piercing Weapon . | . . . . . Special Melee Weapon . | . . . . . Unidentified Prototypes . | . . . . . Parts Lost 9 | . 6 . . 3 Power 3 | . 2 . . 1 Propulsion 4 | . 2 . . 2 Utility . | . . . . . Weapon 2 | . 2 . . . Highest Loss Streak 3 | . 3 . . 3 Average Slot Usage (%) 89 | . 89 100 89 78 Engine 12 | . 8 14 14 12 Wheel 25 | . 24 28 28 22 Device 3 | . 9 . . . Storage 14 | . 16 14 13 14 Protection 4 | . . 14 3 . Energy Gun 2 | . 7 . . . Ballistic Gun 25 | . 20 28 28 28 Naked Turns . | . . . . . Heaviest Build 209 | 14 39 32 209 209 Greatest Support 26 | 20 26 26 26 20 Greatest Overweight (x) 20 | . 2 1 8 20 Average Overweight (x) 3 | . 1 1 4 12 Largest Inventory Capacity 35 | 8 15 15 35 35 Average Capacity 22 | 8 14 15 28 35 Most Carried 26 | 7 15 15 25 26 Average Carried 16 | 5 12 14 18 24 Final Capacity 35 | 8 15 15 35 35 Final Carried 26 | 5 14 15 25 26 Class Distribution -------------------- 61% | Mutant 38% | Hauler-Mutant Dominant Class ---------------- Mutant | -10/Materials Mutant | -10/Mines Hauler-Mutant | -10/Exiles Hauler-Mutant | -9/Mines Resources | -11 -10 -10 -10 -9 ----------- Run | Scr Mat Min Exi Min Matter Collected 1130 | 232 586 71 . 241 Remotely . | . . . . . Salvage Created 1424 | 123 1001 19 . 281 Parts 71 | 2 52 . . 17 Haulers Intercepted 2 | . 2 . . . Recyclers Shooed 10 | . 6 . . 4 Parts Field Recycled . | . . . . . Retrieved Matter . | . . . . . Parts Self-Destructed . | . . . . . Prevented . | . . . . . Kills | -11 -10 -10 -10 -9 ------- Run | Scr Mat Min Exi Min Combat Hostiles Destroyed 24 | . 19 2 . 3 Guns 21 | . 16 2 . 3 AOE 3 | . 3 . . . Classes Destroyed 9 | 2 6 1 . . Worker 5 | . 1 . . 4 Tunneler 1 | 1 . . . . Hauler 2 | . 2 . . . Recycler 5 | 1 3 . . 1 Operator 4 | . 4 . . . Watcher 2 | . 2 . . . Swarmer 6 | . 6 . . . Grunt 16 | . 13 . . 3 Assembled 2 | . . 2 . . Best Kill Streak 7 | 2 7 1 . 4 Combat Bots Only 5 | . 5 1 . 3 Max Kills in Single Turn 2 | 1 2 1 . 1 Gunslinging 1 | . 1 . . . Exploded 1 | . 1 . . . Melee . | . . . . . Uniques/NPCs Destroyed . | . . . . . Combat | -11 -10 -10 -10 -9 -------- Run | Scr Mat Min Exi Min Damage Taken 1371 | . 710 138 . 523 Core 257 | . 129 31 . 97 Absorbed by Shields . | . . . . . Core Remaining (%) 100 | 100 . . . . Volleys Fired 157 | 4 107 8 . 38 Largest 2 | 2 2 2 . 2 Hottest 70 | 70 70 40 . 40 Shots Fired 303 | 8 203 16 . 76 Gun 296 | 8 196 16 . 76 Cannon . | . . . . . Launcher 7 | . 7 . . . Special . | . . . . . Kinetic 228 | 4 132 16 . 76 Thermal 68 | 4 64 . . . Explosive 7 | . 7 . . . Electromagnetic . | . . . . . Robot Hit Streak 11 | 1 9 4 . 11 Robot Miss Streak 5 | 2 5 2 . 4 Penetration Max . | . . . . . Secondary Targets 5 | . 3 . . 2 Max Gunslinging Chain 1 | . 1 . . 1 Shots Hit Robots 182 | 3 120 9 . 50 Core Hits 78 | 3 54 4 . 17 Critical Kills 1 | . 1 . . . Critical Parts Destroyed . | . . . . . Critical Strikes 4 | . 4 . . . Burn 3 | . 3 . . . Destroy 1 | . 1 . . . Melee Attacks . | . . . . . Impact . | . . . . . Slashing . | . . . . . Piercing . | . . . . . Sneak Attacks . | . . . . . Combat Hostiles . | . . . . . Follow-up Attacks . | . . . . . Damage Inflicted 2440 | 40 1630 112 . 658 Guns 2159 | 40 1349 112 . 658 Cannons . | . . . . . Explosions 281 | . 281 . . . Melee . | . . . . . Ramming . | . . . . . Kinetic 1695 | 28 897 112 . 658 Thermal 464 | 12 452 . . . Explosive 281 | . 281 . . . Electromagnetic . | . . . . . Impact . | . . . . . Slashing . | . . . . . Piercing . | . . . . . Highest Corruption . | . . . . . Average Corruption . | . . . . . Corruption Purged . | . . . . . Overload Shots . | . . . . . Overflow Damage 26 | . 26 . . . Projectiles . | . . . . . Explosions 26 | . 26 . . . Melee . | . . . . . Knockbacks . | . . . . . Impact . | . . . . . Kinetic . | . . . . . Secondary . | . . . . . Self-Inflicted Damage 122 | . 122 . . . Shots 4 | . 4 . . . Rammed . | . . . . . Targets Rammed . | . . . . . Kicked . | . . . . . Crushed . | . . . . . Highest Temperature 192 | 27 192 . . 36 Average Temperature 71 | 12 87 . . 15 Received Heat Transfer 573 | . 279 . . 294 Siege Activations . | . . . . . Robots Corrupted . | . . . . . Combat Hostiles . | . . . . . Parts Fried . | . . . . . Impact Corruptions . | . . . . . Robots Melted . | . . . . . Combat Hostiles . | . . . . . Parts Melted 4 | . 4 . . . Heat Transferred 1591 | 37 1554 . . . Parts Sabotaged . | . . . . . Parts Stolen . | . . . . . Parts Stripped . | . . . . . Power Chain Reactions . | . . . . . Missiles Intercepted . | . . . . . Alert | -11 -10 -10 -10 -9 ------- Run | Scr Mat Min Exi Min Peak Influence 341 | 10 341 117 . 45 Initial 117 | . 6 117 . . Average 102 | 6 176 66 . 28 Maximum Alert Level 1 | . 1 . . . Low Security (%) 82 | 100 58 100 . 100 Level 1 17 | . 41 . . . Level 2 . | . . . . . Level 3 . | . . . . . Level 4 . | . . . . . Level 5 . | . . . . . High Security . | . . . . . Max Security . | . . . . . Squads Dispatched 7 | . 7 . . . Investigation 3 | . 3 . . . Extermination . | . . . . . Reinforcement 4 | . 4 . . . Assault . | . . . . . Garrison . | . . . . . Intercept . | . . . . . Construction Impeded . | . . . . . Haulers Reinforced . | . . . . . Cargo Convoy Interrupts . | . . . . . Stealth | -11 -10 -10 -10 -9 --------- Run | Scr Mat Min Exi Min Distress Signals 2 | . 2 . . . Communications Jammed . | . . . . . Distress Signals . | . . . . . Times Spotted 48 | . 40 2 . 6 Peak Tracking Total 5 | . 5 1 . 3 Tactical Retreats . | . . . . . Traps | -11 -10 -10 -10 -9 ------- Run | Scr Mat Min Exi Min Traps Triggered . | . . . . . Indirectly . | . . . . . Trap Hack Attempts . | . . . . . Triggered . | . . . . . Disarmed . | . . . . . Reprogrammed . | . . . . . Reused . | . . . . . Traps Extracted . | . . . . . Installed . | . . . . . Triggered . | . . . . . Machines | -11 -10 -10 -10 -9 ---------- Run | Scr Mat Min Exi Min Machines Disabled 2 | . 2 . . . Max in Single Turn 2 | . 2 . . . Machines Sabotaged . | . . . . . Garrisons Compromised . | . . . . . Overloaded Fab Kills . | . . . . . Fab Network Shutdowns . | . . . . . Hacking | -11 -10 -10 -10 -9 --------- Run | Scr Mat Min Exi Min Machines Accessed 6 | . 4 . 2 . Terminals 3 | . 3 . . . Fabricators . | . . . . . Repair Stations . | . . . . . Recycling Units 1 | . 1 . . . Scanalyzers . | . . . . . Garrison Access . | . . . . . Total Hacks 17 | . 15 . 2 . Successful 8 | . 6 . 2 . Failed 9 | . 9 . . . Catastrophic 1 | . 1 . . . Database Lockouts . | . . . . . Manual 14 | . 13 . 1 . Terminals 10 | . 10 . . . Fabricators . | . . . . . Repair Stations . | . . . . . Recycling Units 5 | . 5 . . . Scanalyzers . | . . . . . Garrison Access . | . . . . . Terminal Hacks 2 | . . . 2 . Record 1 | . . . 1 . EX-Prototype ID Bank 1 | . . . 1 . Fabricator Hacks . | . . . . . Repair Station Hacks . | . . . . . Recycling Unit Hacks 2 | . 2 . . . Retrieve Components 2 | . 2 . . . Scanalyzer . | . . . . . Garrison Access Hacks . | . . . . . Unauthorized Hacks 4 | . 4 . . . Terminals 2 | . 2 . . . Botnet 1 | . 1 . . . Operators 1 | . 1 . . . Fabricators . | . . . . . Repair Stations . | . . . . . Recycling Units 2 | . 2 . . . Reject 1 | . 1 . . . Recyclers 1 | . 1 . . . Scanalyzers . | . . . . . Garrison Access . | . . . . . Data Cores Recovered . | . . . . . Used . | . . . . . Hacking Detections 4 | . 4 . . . Full Trace Events 3 | . 3 . . . Feedback Events . | . . . . . Feedback Blocked . | . . . . . Robot Schematics Acquired . | . . . . . Robots Built . | . . . . . Matter . | . . . . . Time . | . . . . . Total Robot Build Rating . | . . . . . Part Schematics Acquired . | . . . . . Parts Built . | . . . . . Matter . | . . . . . Time . | . . . . . Total Part Build Rating . | . . . . . Parts Repaired . | . . . . . Time . | . . . . . Parts Recycled . | . . . . . Recycled Matter . | . . . . . Retrieved Matter . | . . . . . Retrieved Components . | . . . . . Parts Scanalyzed . | . . . . . Part Schematics Acquired . | . . . . . Parts Damaged . | . . . . . Bothacking | -11 -10 -10 -10 -9 ------------ Run | Scr Mat Min Exi Min Used RIF Installer . | . . . . . Robots Hacked . | . . . . . Non-combat . | . . . . . Combat . | . . . . . Robot Hacks Applied . | . . . . . Relay Couplers Released . | . . . . . Robots Rewired . | . . . . . Allies Hacked . | . . . . . Hacks Repelled . | . . . . . Allies | -11 -10 -10 -10 -9 -------- Run | Scr Mat Min Exi Min Total Allies . | . . . . . Largest Group . | . . . . . Highest-Rated Group . | . . . . . Highest-Rated Ally . | . . . . . Total Orders . | . . . . . Ally Attacks . | . . . . . Total Damage . | . . . . . Kills . | . . . . . Allies Corrupted . | . . . . . Allies Melted . | . . . . . Intel | -11 -10 -10 -10 -9 ------- Run | Scr Mat Min Exi Min Robot Analysis Total . | . . . . . Derelict Logs Recovered 1 | . . . . 1 Drone Launches . | . . . . . Drone Recoveries . | . . . . . Exploration | -11 -10 -10 -10 -9 ------------- Run | Scr Mat Min Exi Min Turns Passed 3220 | 30 1040 698 784 668 Spaces Moved 1489 | 15 647 156 468 203 Core . | . . . . . Treads . | . . . . . Legs 6 | 6 . . . . Wheels 1483 | 9 647 156 468 203 Hover . | . . . . . Flight . | . . . . . Fastest Speed 80 | 80 80 105 90 230 Average Speed 144 | 96 102 105 161 270 Slowest Speed 380 | 120 115 105 210 380 Overloaded Moves . | . . . . . Propulsion Burnouts . | . . . . . Robots Hopped . | . . . . . Cave-ins Triggered . | . . . . . Exploration Rate (%) 44 | 4 83 26 70 41 Regions Visited 4 Branch Regions 3 Pre-discovered Areas 2 | . . . 1 1 Known Exits Taken . | . . . . . Unknown Exits Taken 4 | 1 1 1 1 . Scrap Searched 2 | . . 1 . 1 Spaces Dug . | . . . . . Terrain Destroyed 20 | . 20 . . . Melee . | . . . . . Projectile . | . . . . . AOE 20 | . 20 . . . Terrain Rammed . | . . . . . Walls Destroyed . | . . . . . Machines Disabled . | . . . . . Actions | -11 -10 -10 -10 -9 --------- Run | Scr Mat Min Exi Min Total 2267 | 23 823 676 499 246 Wait 534 | . 28 506 . . Move 1485 | 14 646 155 467 203 Hop . | . . . . . Pick Up 45 | 1 17 3 22 2 Fast Attach 7 | . 4 . 1 2 Attach 10 | 2 7 . . 1 Detach . | . . . . . Swap 8 | . 6 1 1 . Drop 21 | 2 8 3 8 . Fire 157 | 4 107 8 . 38 Melee . | . . . . . Ram . | . . . . . Kick . | . . . . . Crush . | . . . . . Escape Stasis . | . . . . . Rewire . | . . . . . Trap . | . . . . . Miscellaneous . | . . . . . Route ------- -11/Scrapyard -10/Materials (discovered 4 exits: [*Mat x2] / [*Min x2]) -10/Mines -10/Exiles -9/Mines History --------- Turn | Location | Event 10 | -11/Scrapyard | Discovered new exit (range 3) 31 | -11/Scrapyard | Entered Materials 334 | -10/Materials | Build established: Mutant 488 | -10/Materials | Discovered new exit (range 16) 549 | -10/Materials | Discovered new exit (range 9) 626 | -10/Materials | Discovered new exit (range 10) 726 | -10/Materials | Core integrity fell below 50% 751 | -10/Materials | Lost 3 parts (1p1n1w) 936 | -10/Materials | Discovered new exit (range 8) 1071 | -10/Materials | Entered Mines 1072 | -10/Mines | Assembled infested the area 1688 | -10/Mines | Received a Rocket Launcher from a helpful Derelict 1762 | -10/Mines | Deemed a non-threat by the Exiles lab entrance 1763 | -10/Mines | Discovered new exit (range 5) 1769 | -10/Mines | Entered Exiles 1796 | -10/Exiles | Met 8R-AWN 1814 | -10/Exiles | Met EX-HEX 1841 | -10/Exiles | Met EX-BIN 1856 | -10/Exiles | Aligned with FarCom system 1857 | -10/Exiles | Given EX-Vault access code 1883 | -10/Exiles | Opened EX-Vault 1891 | -10/Exiles | Found Latent Energy Streamer 1896 | -10/Exiles | Found AWS/Thermal 1903 | -10/Exiles | Found AWS/Autocannon 1924 | -10/Exiles | Warned to stay clear of 0b10 Research branches 2288 | -10/Exiles | Build established: Hauler-Mutant 2323 | -10/Exiles | Met EX-DEC 2454 | -10/Exiles | Learned location of Zion (-7) 2532 | -10/Exiles | Discovered new exit (range 12) 2553 | -10/Exiles | Stole three prototypes: AWS/Thermal, Latent Energy Streamer, AWS/Autocannon 2553 | -10/Exiles | Entered Mines 2568 | -9/Mines | Core integrity fell below 20% 2614 | -9/Mines | Lost 3 parts (1p2n) 3221 | -9/Mines | Destroyed by G-34 Mercenary with Small Laser Last Messages --------------- 03054_ Acquired 6 matter. 03060_ R-06 Scavenger collects Aluminum Leg. 03061_ Acquired Com. Wheel. 03063_ R-06 Scavenger collects Tractor Beam. 03067_ R-06 Scavenger collects Wheel. 03070_ K-01 Serf collects debris. 03075_ Destroyed Tractor Beam. 03076_ K-01 Serf collects debris. 03078_ Acquired 18 matter. 03094_ K-01 Serf collects debris. 03131_ Destroyed Lgt. Ion Engine. 03146_ K-01 Serf cleans the Plasma Injector. 03201_ K-01 Serf collects debris. 03209_ Searching scrap... 03209_ Found Med. Armor Plating. 03209_ Found Lrg. Matter Pod. 03209_ Found VTOL Module. 03209_ Found Cooling System. 03209_ Found 31 Matter. 03210_ Acquired 31 matter. Map ----- +----------------------------------------------------+ | | | | | | | | | ?????????????????????????????????????????????????? | | ?????????????????????????????????????????????????? | | ?????????????????????????????????????????????????? | | ?????????????????????????????????????????????????? | | ?????????????????????????????????????????????????? | | ?????????????????????????????????????????????????? | | ??????????????????????????????##?????????????????? | | ?????????????????????????##??? ?????????????????? | | ??????????????????????? #?# ??????????#??????? | | ?????????????????????# ?# ?????????? ?????? | | ????????????????????? ## ?????????? ?????? | | ????????????????????? # ##??????? #?????? | | ?????????????????????? ##?????? #?????? | | ??????????????????????? ##????? ##????? | | ????????????????????????# ##??? ###??? | | ???????????????????##????# #??? ##?? | | ??????????????????## ????# """ ##?? #?? | | ??????????????##### ?????# """ ### #?? | | ?????????????## ?????# """ #??? | | ?????????????# ####### #???? | | ?????????? =$! g g #????? | | ?????????? !@! g ## ##????? | | ???????????# ## ############ #######? | | ????????????????# ??## #??????????## #? | | ????????????????# ???###?????????### #? | | ????????????????# ?????????????## ###### #? | | ????????????????# ############## ##???????#? | | ????????????????# ##?????????? | | ????????????????# ##### ##??????????? | | ????????????????######### #???## ##???????????? | | ????????????????????????# #????# ###????????????? | | ?????#######?????????#### ###### #??????????????? | | ????## ##????????# # #??????????????? | | #?### ####?????# """ """ # ??????????????? | | ## #?????# """ """ # ??????????????? | | # ! !! ### #?????# """ """ ###??????????????? | | ! !! ##?# #?????# ** #????????????????? | | !!!! #??# #?????# !* #????????????????? | | !!!! #??# #?????### ###=####????????????????? | | ### ##??# #???????# #?#%####### $ ?????? | | ??########???# #???##### #?# % #?????? | | ?????????????# #???# #?# ## #### #??????? | | ?????????????# #???# #####?# #??#????????????????? | | ?????????????# #???# #???### #???????????????????? | | ?????????????# #???# ##### ##??????????????????? | | ?????????????# #???# #??????????????????? | +----------------------------------------------------+ Best States ------------- Heat Dissipation 35 Energy Generation 10 Energy Capacity 250 Matter Stores 300 Matter Capacity 300 Sight Range 16 Terrain Scan Density 10 Armor Coverage 150 Evasion (%) 45 Item Schematics ----------------- None Robot Schematics ------------------ None Fabricated ------------ Nothing Alien Tech Used ----------------- None Achievements -------------- None Challenges ------------ None Game ------ Seed MasterLightningMallet Manual? 0 Play Time 00:14:04 Cumulative 250.8 hours Start 2021.07.13 @ 19:55:40 End 2021.07.13 @ 20:08:02 Sessions 1 Manual Loads 0 Difficulty Rogue Special Mode None Game No. 142 Rogue 142 Adventurer 0 Explorer 0 Win Type - Total 5 Types 4/0/0/1/0/0/0/0/0 Lore% 71 Gallery% 79 Achievement% 55 Wizard Run 0 Options --------- ASCII 0 Keyboard 0 Movement Numpad Keybinds 0 Fullscreen 1 Font 18/SmallcapsGlow Map View 76x50 Tactical HUD 1 Map Filters NONE Filters NONE Steam 1 RUN: 093838c8-773f-4ff1-bca6-c574e2620766